[Event "31st MPL National U18G Chess-ch 2022"]
[Site "Pollachi"]
[Date "2022.04.20"]
[Round "6.4"]
[White "Tejaswi R"]
[Black "Chinnam Vyshnavi"]
[Result "0-1"]
[ECO "A52"]
[WhiteElo "1460"]
[BlackElo "1721"]
[Annotator "NA RC COMBH"]
[PlyCount "118"]
[EventDate "2022.04.18"]
[EventCountry "IND"]
[SourceTitle "playchess.com"]
[Source "ChessBase"]
[SourceQuality "1"]
[TimeControl "5400+30"]

1. d4 {[%emt 0:00:44]} Nf6 {[%emt 0:00:09]} 2. c4 {[%emt 0:00:06]} e5 {[%emt 0:00:06]} 3. dxe5 {[%emt 0:00:22]} Ng4 {[%emt 0:00:09]} 4. Bf4 {[%emt 0:00:28]} Nc6 {[%emt 0:00:09]} 5. Nf3 {[%emt 0:00:12]} Bb4+ {[%emt 0:00:07]} 6. Nbd2 {[%emt 0:00:41]} Qe7 {[%emt 0:00:38]} 7. e3 {[%emt 0:00:16]} Ngxe5 {[%emt 0:00:32]} 8. Be2 {[%emt 0:00:41]} Bxd2+ {[%emt 0:01:16]} 9. Qxd2 {[%emt 0:01:24]} d6 {[%emt 0:00:29]} 10. O-O {[%emt 0:02:02]} O-O {[%emt 0:04:18]} 11. Nd4 {[%emt 0:08:25]} Bd7 {[%emt 0:05:07]} 12. a3 {[%emt 0:06:46]} Rfe8 {[%emt 0:03:43]} 13. Rfe1 {[%emt 0:01:01]} a5 {[%emt 0:08:17]} 14. Qc2 {[%emt 0:04:00]} Qf6 {[%emt 0:15:58]} 15. Bg3 {[%emt 0:06:22]} Nxd4 {[%emt 0:02:30]} 16. exd4 {[%emt 0:01:47]} Nc6 {[%emt 0:00:12]} 17. d5 {[%emt 0:01:18]} Nd4 {[%emt 0:01:26]} 18. Qd1 {[%emt 0:03:05]} Bf5 {[%emt 0:12:29]} 19. Rc1 {[%emt 0:01:18]} Re7 {[%emt 0:09:47]} 20. Bf1 {[%emt 0:04:45]} Rxe1 {[%emt 0:00:07]} 21. Qxe1 {[%emt 0:00:37]} Nc2 {[%emt 0:00:24]} 22. Qc3 {[%emt 0:02:26]} Qxc3 {[%emt 0:01:03]} 23. bxc3 {[%emt 0:00:04]} Nxa3 {[%emt 0:00:12]} 24. f3 {[%emt 0:00:38]} Nb1 {[%emt 0:01:32]} 25. c5 {[%emt 0:02:55]} a4 {[%emt 0:02:14]} 26. Bc4 {[%emt 0:01:37]} Nd2 {[%emt 0:00:54]} 27. Ba2 {[%emt 0:00:32]} Nb3 {[%emt 0:00:19]} 28. Rd1 {[%emt 0:03:09]} Nxc5 {[%emt 0:00:11]} 29. Bf2 {[%emt 0:05:31]} Bc2 {[%emt 0:02:40]} 30. Rd2 {[%emt 0:02:05]} Bb3 {[%emt 0:00:12]} 31. Bxc5 {[%emt 0:01:08]} dxc5 {[%emt 0:00:32]} 32. c4 {[%emt 0:00:24]} Bxa2 {[%emt 0:01:17]} 33. Rxa2 {[%emt 0:00:10]} a3 {[%emt 0:00:59]} 34. Kf2 {[%emt 0:01:08]} Kf8 {[%emt 0:00:09]} 35. Ke3 {[%emt 0:00:06]} Ke7 {[%emt 0:00:10]} 36. Kd3 {[%emt 0:01:21]} Kd6 {[%emt 0:00:11]} 37. Kc3 {[%emt 0:02:30]} c6 {[%emt 0:00:32]} 38. dxc6 {[%emt 0:00:18]} Kxc6 {[%emt 0:00:05]} 39. g3 {[%emt 0:01:15]} b5 {[%emt 0:00:20]} 40. cxb5+ {[%emt 0:00:55]} Kxb5 {[%emt 0:00:02]} 41. Kb3 {[%emt 0:01:14]} c4+ {[%emt 0:00:47]} 42. Kc3 {[%emt 0:00:21]} Rd8 {[%emt 0:00:06]} 43. Rxa3 {[%emt 0:01:24]} Rd3+ {[%emt 0:00:09]} 44. Kb2 {[%emt 0:00:04]} Rxa3 {[%emt 0:00:08]} 45. Kxa3 {[%emt 0:00:05]} Kc5 {[%emt 0:00:13]} 46. Kb2 {[%emt 0:00:06]} Kd4 {[%emt 0:00:07]} 47. Kc2 {[%emt 0:00:04]} f5 {[%emt 0:00:25]} 48. f4 {[%emt 0:01:57]} h5 {[%emt 0:00:10]} 49. Kd2 {[%emt 0:00:50]} c3+ {[%emt 0:00:14]} 50. Kc2 {[%emt 0:00:15]} Kc4 {[%emt 0:00:06]} 51. h3 {[%emt 0:00:59]} Kd4 {[%emt 0:00:05]} 52. h4 {[%emt 0:00:13]} Kc4 {[%emt 0:00:33]} 53. Kc1 {[%emt 0:00:05]} Kd3 {[%emt 0:00:05]} 54. Kd1 {[%emt 0:00:05]} c2+ {[%emt 0:00:24]} 55. Kc1 {[%emt 0:00:07]} Kc3 {[%emt 0:00:09]} 56. g4 {[%emt 0:00:14]} hxg4 {[%emt 0:00:28]} 57. h5 {[%emt 0:00:14]} g3 {[%emt 0:00:20]} 58. h6 {[%emt 0:00:06]} g2 {[%emt 0:00:06]} 59. h7 {[%emt 0:00:10]} g1=Q# {[%emt 0:00:07]} 0-1

[Event "31st MPL National U18G Chess-ch 2022"]
[Site "Pollachi"]
[Date "2022.04.20"]
[Round "6.5"]
[White "Saniya Rafique Tadavi"]
[Black "Anupam M Sreekumar"]
[Result "0-1"]
[ECO "C54"]
[WhiteElo "1298"]
[BlackElo "1724"]
[Annotator "NA RC COMBH"]
[PlyCount "179"]
[EventDate "2022.04.18"]
[EventCountry "IND"]
[SourceTitle "playchess.com"]
[Source "ChessBase"]
[SourceQuality "1"]
[TimeControl "5400+30"]

1. e4 {[%emt 0:00:03]} e5 {[%emt 0:00:09]} 2. Nf3 {[%emt 0:00:05]} Nc6 {[%emt 0:00:07]} 3. d4 {[%emt 0:00:07]} exd4 {[%emt 0:00:06]} 4. Bc4 {[%emt 0:00:12]} Bc5 {[%emt 0:00:28]} 5. c3 {[%emt 0:00:17]} Nf6 {[%emt 0:00:15]} 6. e5 {[%emt 0:00:36]} d5 {[%emt 0:00:12]} 7. Bb5 {[%emt 0:00:20]} Ne4 {[%emt 0:00:16]} 8. cxd4 {[%emt 0:00:09]} Bb6 {[%emt 0:00:20]} 9. O-O {[%emt 0:02:06]} Bg4 {[%emt 0:00:31]} 10. Be3 {[%emt 0:00:38]} O-O {[%emt 0:00:30]} 11. Bxc6 {[%emt 0:03:25]} bxc6 {[%emt 0:00:03]} 12. Qc1 {[%emt 0:01:03]} Qd7 {[%emt 0:05:20]} 13. Nbd2 {[%emt 0:00:15]} f6 {[%emt 0:01:25]} 14. exf6 {[%emt 0:01:27]} gxf6 {[%emt 0:10:34]} 15. Nxe4 {[%emt 0:08:39]} dxe4 {[%emt 0:03:08]} 16. Nd2 {[%emt 1:19:08]} Rae8 {[%emt 0:00:38]} 17. Kh1 {[%emt 0:00:00]} Kh8 {[%emt 0:00:39]} 18. f3 {[%emt 0:00:00]} Bf5 {[%emt 0:02:02]} 19. Qc3 {[%emt 0:00:00]} Rg8 {[%emt 0:06:14]} 20. Rad1 {[%emt 0:00:00]} Qg7 {[%emt 0:00:45]} 21. Rg1 {[%emt 0:00:00]} exf3 {[%emt 0:02:34]} 22. Nxf3 {[%emt 0:00:00]} Be4 {[%emt 0:00:21]} 23. Bf2 {[%emt 0:00:00]} Bd5 {[%emt 0:02:27]} 24. a4 {[%emt 0:00:00]} a5 {[%emt 0:02:53]} 25. Qd2 {[%emt 0:00:00]} Qg4 {[%emt 0:01:54]} 26. Bh4 {[%emt 0:00:00]} Rg6 {[%emt 0:03:12]} 27. Qf2 {[%emt 0:00:00]} Reg8 {[%emt 0:01:37]} 28. Bg3 {[%emt 0:00:00]} Bxf3 {[%emt 0:08:52]} 29. Qxf3 {[%emt 0:00:00]} Qxf3 {[%emt 0:00:19]} 30. gxf3 {[%emt 0:00:00]} Rd8 {[%emt 0:00:34]} 31. Bf2 {[%emt 0:00:00]} Rxg1+ {[%emt 0:02:38]} 32. Kxg1 {[%emt 0:00:00]} Rd5 {[%emt 0:00:04]} 33. Rc1 {[%emt 0:00:00]} Bxd4 {[%emt 0:05:15]} 34. Rxc6 {[%emt 0:00:00]} Bxb2 {[%emt 0:04:26]} 35. Rxc7 {[%emt 0:00:00]} Be5 {[%emt 0:00:14]} 36. Ra7 {[%emt 0:00:00]} Rd1+ {[%emt 0:00:31]} 37. Kg2 {[%emt 0:00:00]} Rd2 {[%emt 0:00:06]} 38. Ra8+ {[%emt 0:00:00]} Kg7 {[%emt 0:00:12]} 39. Kf1 {[%emt 0:00:00]} Bc3 {[%emt 0:00:49]} 40. Ra7+ {[%emt 0:00:00]} Kg6 {[%emt 0:00:44]} 41. Rc7 {[%emt 0:00:00]} Be5 {[%emt 0:04:13]} 42. Rc4 {[%emt 0:00:00]} Bxh2 {[%emt 0:02:50]} 43. Rc5 {[%emt 0:00:00]} Be5 {[%emt 0:01:20]} 44. Rxa5 {[%emt 0:00:00]} h5 {[%emt 0:01:16]} 45. Be3 {[%emt 0:00:00]} Rd7 {[%emt 0:03:26]} 46. f4 {[%emt 0:00:00]} Bd4 {[%emt 0:00:18]} 47. f5+ {[%emt 0:00:00]} Kf7 {[%emt 0:03:15]} 48. Bxd4 {[%emt 0:00:00]} Rxd4 {[%emt 0:00:22]} 49. Kg2 {[%emt 0:00:00]} Rd3 {[%emt 0:00:39]} 50. Rb5 {[%emt 0:00:00]} Kg7 {[%emt 0:01:28]} 51. a5 {[%emt 0:00:00]} Ra3 {[%emt 0:00:26]} 52. Rb7+ {[%emt 0:00:00]} Kh6 {[%emt 0:00:10]} 53. Ra7 {[%emt 0:00:00]} Kg5 {[%emt 0:01:41]} 54. a6 {[%emt 0:00:00]} h4 {[%emt 0:01:16]} 55. Ra8 {[%emt 0:00:00]} Kg4 {[%emt 0:01:10]} 56. a7 {[%emt 0:00:00]} h3+ {[%emt 0:00:13]} 57. Kg1 {[%emt 0:00:00]} Ra1+ {[%emt 0:00:16]} 58. Kh2 {[%emt 0:00:00]} Ra2+ {[%emt 0:00:16]} 59. Kg1 {[%emt 0:00:00]} h2+ {[%emt 0:01:07]} 60. Kh1 {[%emt 0:00:10]} Kxf5 {[%emt 0:00:05]} 61. Rg8 {[%emt 0:02:36]} Rxa7 {[%emt 0:00:02]} 62. Kxh2 {[%emt 0:00:22]} Kf4 {[%emt 0:00:38]} 63. Rf8 {[%emt 0:00:34]} f5 {[%emt 0:00:03]} 64. Kg2 {[%emt 0:00:29]} Ra2+ {[%emt 0:00:23]} 65. Kf1 {[%emt 0:01:13]} Kg4 {[%emt 0:00:06]} 66. Ke1 {[%emt 0:05:38]} f4 {[%emt 0:00:39]} 67. Rf7 {[%emt 0:00:11]} Kg3 {[%emt 0:01:38]} 68. Rf8 {[%emt 0:00:24]} Ra1+ {[%emt 0:00:12]} 69. Ke2 {[%emt 0:00:11]} Ra2+ {[%emt 0:00:53]} 70. Ke1 {[%emt 0:00:07]} Kf3 {[%emt 0:04:40]} 71. Rf7 {[%emt 0:00:06]} Ra1+ {[%emt 0:02:14]} 72. Kd2 {[%emt 0:00:06]} Rg1 {[%emt 0:00:05]} 73. Rf8 {[%emt 0:00:19]} Rg4 {[%emt 0:00:13]} 74. Ke1 {[%emt 0:01:18]} Rg1+ {[%emt 0:03:22]} 75. Kd2 {[%emt 0:00:09]} Rf1 {[%emt 0:00:44]} 76. Rf7 {[%emt 0:00:35]} Kg2 {[%emt 0:00:24]} 77. Ke2 {[%emt 0:02:31]} f3+ {[%emt 0:00:10]} 78. Kd2 {[%emt 0:00:05]} Kf2 {[%emt 0:01:14]} 79. Kd3 {[%emt 0:02:08]} Ra1 {[%emt 0:00:32]} 80. Rf8 {[%emt 0:01:38]} Ra3+ {[%emt 0:00:12]} 81. Kd2 {[%emt 0:00:22]} Kf1 {[%emt 0:00:29]} 82. Rf7 {[%emt 0:03:06]} f2 {[%emt 0:00:06]} 83. Rf8 {[%emt 0:00:26]} Kg2 {[%emt 0:00:20]} 84. Ke2 {[%emt 0:00:47]} Ra2+ {[%emt 0:00:04]} 85. Ke3 {[%emt 0:00:10]} f1=Q {[%emt 0:00:06]} 86. Rg8+ {[%emt 0:00:21]} Kh3 {[%emt 0:00:20]} 87. Rh8+ {[%emt 0:00:20]} Kg4 {[%emt 0:00:05]} 88. Rg8+ {[%emt 0:00:13]} Kh5 {[%emt 0:00:05]} 89. Rh8+ {[%emt 0:00:07]} Kg6 {[%emt 0:00:04]} 90. Kd4 {[%emt 0:10:18]} 0-1

[Event "31st MPL National U18G Chess-ch 2022"]
[Site "Pollachi"]
[Date "2022.04.20"]
[Round "6.6"]
[White "Sasvatha A"]
[Black "Khairmode Dhanashree"]
[Result "0-1"]
[ECO "E12"]
[WhiteElo "1756"]
[BlackElo "1438"]
[Annotator "NA RC COMBH"]
[PlyCount "100"]
[EventDate "2022.04.18"]
[EventCountry "IND"]
[SourceTitle "playchess.com"]
[Source "ChessBase"]
[SourceQuality "1"]
[TimeControl "5400+30"]

1. d4 {[%emt 0:00:02]} Nf6 {[%emt 0:00:05]} 2. c4 {[%emt 0:00:06]} e6 {[%emt 0:00:03]} 3. Nf3 {[%emt 0:00:22]} b6 {[%emt 0:00:09]} 4. Nc3 {[%emt 0:00:11]} Bb4 {[%emt 0:00:24]} 5. Bg5 {[%emt 0:00:32]} Bb7 {[%emt 0:01:00]} 6. e3 {[%emt 0:00:31]} O-O {[%emt 0:01:00]} 7. a3 {[%emt 0:00:28]} Bxc3+ {[%emt 0:00:09]} 8. bxc3 {[%emt 0:00:08]} d5 {[%emt 0:01:38]} 9. cxd5 {[%emt 0:02:14]} exd5 {[%emt 0:00:15]} 10. Bd3 {[%emt 0:02:19]} c5 {[%emt 0:03:46]} 11. Ne5 {[%emt 0:13:15]} Qd6 {[%emt 0:05:09]} 12. Bxf6 {[%emt 0:19:49]} Qxf6 {[%emt 0:00:11]} 13. Qh5 {[%emt 0:00:07]} g6 {[%emt 0:03:01]} 14. Qh6 {[%emt 0:02:38]} Qg7 {[%emt 0:17:11]} 15. Qf4 {[%emt 0:00:34]} f6 {[%emt 0:03:26]} 16. Nf3 {[%emt 0:03:00]} Nc6 {[%emt 0:01:12]} 17. h4 {[%emt 0:02:25]} Ne7 {[%emt 0:01:28]} 18. Rh3 {[%emt 0:03:04]} Kh8 {[%emt 0:01:59]} 19. g4 {[%emt 0:02:08]} Rae8 {[%emt 0:02:15]} 20. Qg3 {[%emt 0:09:11]} Bc8 {[%emt 0:01:37]} 21. h5 {[%emt 0:15:34]} g5 {[%emt 0:00:41]} 22. Kd2 {[%emt 0:01:23]} Nc6 {[%emt 0:14:22]} 23. Rh2 {[%emt 0:01:35]} Na5 {[%emt 0:00:30]} 24. Rb1 {[%emt 0:01:13]} Qe7 {[%emt 0:12:13]} 25. h6 {[%emt 0:10:17]} c4 {[%emt 0:14:20]} 26. Bc2 {[%emt 0:01:03]} Qd7 {[%emt 0:01:13]} 27. Rg2 {[%emt 0:01:34]} Nb7 {[%emt 0:01:41]} 28. Kc1 {[%emt 0:02:46]} Nd6 {[%emt 0:02:10]} 29. Nd2 {[%emt 0:01:25]} Qe7 {[%emt 0:01:04]} 30. Qf3 {[%emt 0:01:07]} Ne4 {[%emt 0:05:17]} 31. Nxe4 {[%emt 0:01:39]} dxe4 {[%emt 0:00:21]} 32. Qe2 {[%emt 0:00:21]} Qxa3+ {[%emt 0:00:05]} 33. Kd2 {[%emt 0:00:06]} Ba6 {[%emt 0:00:55]} 34. Rgg1 {[%emt 0:00:14]} Qd6 {[%emt 0:00:39]} 35. Ra1 {[%emt 0:00:41]} b5 {[%emt 0:00:27]} 36. Rgb1 {[%emt 0:01:25]} Re7 {[%emt 0:00:35]} 37. Ra5 {[%emt 0:00:29]} b4 {[%emt 0:02:37]} 38. Qe1 {[%emt 0:01:58]} bxc3+ {[%emt 0:01:16]} 39. Kxc3 {[%emt 0:00:14]} Bc8 {[%emt 0:00:47]} 40. Bd1 {[%emt 0:00:59]} Be6 {[%emt 0:01:15]} 41. Rba1 {[%emt 0:00:54]} Rb8 {[%emt 0:00:23]} 42. Kc2 {[%emt 0:00:27]} Reb7 {[%emt 0:01:07]} 43. Qc3 {[%emt 0:00:47]} Rb3 {[%emt 0:00:25]} 44. Qe1 {[%emt 0:00:16]} Qb6 {[%emt 0:00:29]} 45. R5a2 {[%emt 0:00:42]} Rb2+ {[%emt 0:00:12]} 46. Kc1 {[%emt 0:00:06]} Rb1+ {[%emt 0:00:05]} 47. Kd2 {[%emt 0:00:53]} Rxa1 {[%emt 0:00:07]} 48. Rxa1 {[%emt 0:00:08]} Qb2+ {[%emt 0:00:05]} 49. Bc2 {[%emt 0:00:10]} c3+ {[%emt 0:00:09]} 50. Ke2 {[%emt 0:00:06]} Bc4+ {[%emt 0:00:11]} 0-1

[Event "31st MPL National U18G Chess-ch 2022"]
[Site "Pollachi"]
[Date "2022.04.20"]
[Round "6.7"]
[White "Varshita Jain"]
[Black "Ishvi Aggarwal"]
[Result "0-1"]
[ECO "C96"]
[WhiteElo "1491"]
[BlackElo "1833"]
[Annotator "NA RC COMBH"]
[PlyCount "68"]
[EventDate "2022.04.18"]
[EventCountry "IND"]
[SourceTitle "playchess.com"]
[Source "ChessBase"]
[SourceQuality "1"]
[TimeControl "5400+30"]

1. e4 {[%emt 0:00:03]} e5 {[%emt 0:00:03]} 2. Nf3 {[%emt 0:00:08]} Nc6 {[%emt 0:00:03]} 3. Bb5 {[%emt 0:00:06]} a6 {[%emt 0:00:04]} 4. Ba4 {[%emt 0:00:05]} Nf6 {[%emt 0:00:04]} 5. O-O {[%emt 0:00:07]} Be7 {[%emt 0:00:01]} 6. Re1 {[%emt 0:00:11]} b5 {[%emt 0:00:13]} 7. Bb3 {[%emt 0:00:01]} d6 {[%emt 0:00:05]} 8. c3 {[%emt 0:00:06]} O-O {[%emt 0:00:05]} 9. h3 {[%emt 0:00:03]} Na5 {[%emt 0:00:04]} 10. Bc2 {[%emt 0:00:06]} c5 {[%emt 0:00:03]} 11. d4 {[%emt 0:00:09]} Nd7 {[%emt 0:00:05]} 12. d5 {[%emt 0:02:17]} c4 {[%emt 0:00:56]} 13. Nbd2 {[%emt 0:00:49]} Nb6 {[%emt 0:04:36]} 14. Nf1 {[%emt 0:07:57]} f5 {[%emt 0:00:22]} 15. exf5 {[%emt 0:03:30]} Bxf5 {[%emt 0:00:02]} 16. Bxf5 {[%emt 0:01:02]} Rxf5 {[%emt 0:00:02]} 17. Ng3 {[%emt 0:00:51]} Rf8 {[%emt 0:00:35]} 18. Ne4 {[%emt 0:01:13]} h6 {[%emt 0:02:09]} 19. Be3 {[%emt 0:01:36]} Nd7 {[%emt 0:04:19]} 20. Qd2 {[%emt 0:01:33]} ({Better is} 20. Nfd2 $16) 20... Qe8 {[%emt 0:04:14]} 21. Bxh6 {[%emt 0:16:38]} gxh6 {[%emt 0:01:12]} 22. Qxh6 {[%emt 0:00:07]} Qf7 {[%emt 0:05:14]} 23. Neg5 {[%emt 0:01:28]} Bxg5 {[%emt 0:00:12]} 24. Nxg5 {[%emt 0:00:14]} Qg7 {[%emt 0:02:50]} 25. Qe6+ {[%emt 0:12:38]} (25. Qxd6 $11 {keeps the balance.} Qxg5 26. Qxd7) 25... Kh8 {[%emt 0:00:36]} 26. Qxd6 {[%emt 0:12:04]} Nb7 {[%emt 0:01:06]} 27. Qc7 {[%emt 0:01:34]} Qxg5 {[%emt 0:00:51]} 28. Qxb7 {[%emt 0:04:18]} Nc5 {[%emt 0:00:35]} 29. Qb6 {[%emt 0:03:35]} Nd3 {[%emt 0:01:06]} 30. Rf1 {[%emt 0:05:58]} (30. Qe3 $19 Qg7 31. Re2) 30... Nf4 {[%emt 0:06:15]} 31. g3 {[%emt 0:00:15]} Nxh3+ {[%emt 0:00:47]} 32. Kh2 {[%emt 0:00:08]} Qh5 {[%emt 0:01:26]} 33. Kg2 {[%emt 0:00:47] [#]} Nf4+ $1 {[%emt 0:00:31]} 34. Kg1 {[%emt 0:00:54] [#]} Qh3 $1 {[%emt 0:00:18]} 0-1

[Event "31st MPL National U18G Chess-ch 2022"]
[Site "Pollachi"]
[Date "2022.04.21"]
[Round "7.1"]
[White "Udagedara, Sandali Kanishka"]
[Black "Bhagyashree Patil"]
[Result "0-1"]
[ECO "D35"]
[WhiteElo "1510"]
[BlackElo "1974"]
[Annotator "TA"]
[PlyCount "100"]
[EventDate "2022.04.18"]
[EventCountry "IND"]
[SourceTitle "playchess.com"]
[Source "ChessBase"]
[SourceQuality "1"]
[TimeControl "5400+30"]

{[%evp 9,99,7,4,5,10,11,14,0,15,0,3,-29,-27,-107,-94,-102,-91,-83,-102,-86,-61,-100,-29,-89,-89,-84,-84,-95,-93,-161,-152,-223,-223,-627,-582,-590,-575,-683,-551,-558,-557,-552,-545,-522,-526,-512,-502,-515,-512,-496,-490,-573,-534,-853,-837,-832,-846,-950,-925,-8323,-7019,-5691,-1452,-5774,-4937,-29982,-29983,-29983,-29984,-29981,-29982,-29985,-29986,-29989,-29990,-29990,-29991,-29992,-29993,-29993,-29993,-29993,-29994,-29994,-29995,-29996,-29997,-29997,-29998,-29998,-29999,-29999]} 1. c4 {[%emt 1:31:00]} e6 {[%emt 0:00:19]} 2. Nc3 {[%emt 0:00:00]} d5 {[%emt 0:00:03]} 3. cxd5 {[%emt 0:00:00]} exd5 {[%emt 0:00:04]} 4. d4 {[%emt 0:00:00]} Nf6 {[%emt 0:00:47]} 5. Bf4 {[%emt 0:00:00]} Bd6 {[%emt 0:03:51]} 6. Bxd6 {[%emt 0:00:00] D35: Queen's Gambit Declined: Exchange Variation.} Qxd6 {[%emt 0:00:11]} 7. e3 {[%emt 0:00:00]} O-O {[%emt 0:01:06]} 8. Bd3 {[%emt 0:00:00] The position is equal.} b6 {[%emt 0:04:14]} 9. Nge2 {[%emt 0:00:00] [#]} c5 $146 {[%emt 0:03:57]} ({Predecessor:} 9... c6 10. Ng3 Re8 11. O-O g6 12. Qd2 a5 13. f3 Ra7 14. Rae1 Rae7 15. Qf2 Be6 16. h3 Rd8 {½-½ (16) Borges,G (2101)-Gauche,C (2237) Blumenau 2015}) 10. dxc5 {[%emt 0:00:00]} bxc5 {[%emt 0:01:30]} 11. Qc2 {[%emt 0:00:00]} (11. O-O $11 {keeps the balance.}) 11... Nc6 $17 {[%emt 0:07:16] ...c4 is the strong threat.} 12. a3 {[%emt 0:00:00]} Ne5 {[%emt 0:02:45]} 13. O-O {[%emt 0:00:00]} Nxd3 {[%emt 0:03:51]} 14. Qxd3 {[%emt 0:00:00][%cal Ob2b4]} Ba6 {[%emt 0:00:11]} 15. Qf5 {[%emt 0:00:00][%cal Ob2b4]} Rab8 {[%emt 0:05:01] Inhibits b4.} (15... Rae8 $17 {Threatens to win with ...d4.} 16. b4 d4 17. bxc5 Qc7 18. Nxd4 Re5) 16. Rab1 {[%emt 0:00:00]} (16. b4 $1 $11 {remains equal.}) 16... g6 {[%emt 0:17:08] Black converts the advantage convincingly.} 17. Qf3 {[%emt 0:00:00]} Bd3 {[%emt 0:09:23]} 18. Rbd1 {[%emt 0:00:00]} c4 $36 {[%emt 0:00:02][%mdl 2048] White is under strong pressure. &Nero is more active.} 19. Rd2 {[%emt 0:00:00] [#]} (19. b4 $17) 19... Ne4 $1 $19 {[%emt 0:02:04]} 20. Nxe4 {[%emt 0:00:00]} (20. Rfd1 $17) 20... dxe4 {[%emt 0:00:03]} 21. Qxe4 {[%emt 0:00:00] [#]} (21. Qf4 Qxf4 22. exf4) 21... Rxb2 $1 {[%emt 0:04:43][%mdl 512]} 22. Rxd3 {[%emt 0:00:00]} Qxd3 {[%emt 0:00:53]} 23. Ng3 {[%emt 0:00:00]} Qxe4 {[%emt 0:01:10]} 24. Nxe4 {[%emt 0:00:00][%mdl 4096] Endgame KRR-KRN} f5 {[%emt 0:01:10]} 25. Nc3 {[%emt 0:00:00]} Rb3 {[%emt 0:01:41]} 26. Rc1 {[%emt 0:00:00]} Rxa3 {[%emt 0:01:01]} 27. Kf1 {[%emt 0:00:00]} Rb3 {[%emt 0:01:11]} 28. Ke2 {[%emt 0:00:00]} Rd8 {[%emt 0:01:01]} 29. Rc2 {[%emt 0:00:00]} a5 {[%emt 0:00:15]} 30. f3 {[%emt 0:00:00]} Rdb8 {[%emt 0:00:42]} 31. Nd1 {[%emt 0:00:00]} R8b4 {[%emt 0:00:12] aiming for ...a4.} 32. Kd2 {[%emt 0:00:00]} a4 {[%emt 0:00:40] Hoping for ...a3.} 33. Rc1 {[%emt 0:00:00]} Rb1 {[%emt 0:00:54] White must now prevent ...Rxc1.} 34. Rxb1 {[%emt 0:00:00]} Rxb1 {[%emt 0:00:06] KR-KN} 35. Kc2 {[%emt 0:00:00]} Rb3 {[%emt 0:00:55]} (35... Rb8 $142 36. Nc3 a3) 36. Nc3 {[%emt 0:00:00]} a3 {[%emt 0:00:16]} 37. e4 {[%emt 0:00:00]} fxe4 {[%emt 0:00:11] Black mates.} 38. fxe4 {[%emt 0:00:00] [#]} Rxc3+ $1 {[%emt 0:00:23]} 39. Kxc3 {[%emt 0:00:00] KP-KP} Kf7 {[%emt 0:00:04]} 40. Kc2 {[%emt 0:00:00]} Ke6 {[%emt 0:00:02]} 41. Kb1 {[%emt 0:00:00]} c3 {[%emt 0:00:03]} 42. g4 {[%emt 0:00:00]} Ke5 {[%emt 0:00:02]} 43. h4 {[%emt 0:00:00]} Kxe4 {[%emt 0:00:02]} 44. h5 {[%emt 0:00:00]} gxh5 {[%emt 0:00:03]} 45. gxh5 {[%emt 0:00:00]} Kd3 {[%emt 0:00:06]} 46. h6 {[%emt 0:00:00]} c2+ {[%emt 0:00:24]} 47. Ka2 {[%emt 0:00:00]} c1=Q {[%emt 0:00:12][%csl Ga3][%cal Rc1b2]} 48. Kb3 {[%emt 0:00:00]} Qb2+ {[%emt 0:00:07]} 49. Ka4 {[%emt 0:00:00]} a2 {[%emt 0:00:02][%cal Ra2a1]} 50. Ka5 {[%emt 0:00:00]} a1=R# {[%emt 0:00:04] Weighted Error Value: White=0.50/Black=0.10 (very precise)} 0-1

[Event "31st MPL National U18G Chess-ch 2022"]
[Site "Pollachi"]
[Date "2022.04.21"]
[Round "7.3"]
[White "Keerti Shree Reddy"]
[Black "Anupam M Sreekumar"]
[Result "1-0"]
[ECO "C13"]
[WhiteElo "1721"]
[BlackElo "1724"]
[Annotator "NA RC COMBH"]
[PlyCount "111"]
[EventDate "2022.04.18"]
[EventCountry "IND"]
[SourceTitle "playchess.com"]
[Source "ChessBase"]
[SourceQuality "1"]
[TimeControl "5400+30"]

1. d4 {[%emt 0:01:37]} d5 {[%emt 0:00:31]} 2. Nc3 {[%emt 0:00:11]} Nf6 {[%emt 0:01:18]} 3. Bg5 {[%emt 0:00:07]} e6 {[%emt 0:00:56]} 4. e4 {[%emt 0:00:08]} dxe4 {[%emt 0:01:33]} 5. Nxe4 {[%emt 0:00:07]} Be7 {[%emt 0:00:50]} 6. Bxf6 {[%emt 0:00:19]} Bxf6 {[%emt 0:00:37]} 7. c3 {[%emt 0:00:14]} Bd7 {[%emt 0:05:59]} 8. Nf3 {[%emt 0:02:05]} Bc6 {[%emt 0:01:08]} 9. Bd3 {[%emt 0:01:32]} Nd7 {[%emt 0:04:14]} 10. O-O {[%emt 0:09:40]} O-O {[%emt 0:06:02]} 11. Re1 {[%emt 0:00:22]} Re8 {[%emt 0:06:58]} 12. Qc2 {[%emt 0:00:38]} Be7 {[%emt 0:01:45]} 13. Rad1 {[%emt 0:04:24]} Bf8 {[%emt 0:02:10]} 14. Re3 {[%emt 0:14:23]} g6 {[%emt 0:04:35]} 15. Ne5 {[%emt 0:11:43]} Bxe4 {[%emt 0:06:21]} 16. Bxe4 {[%emt 0:00:34]} c6 {[%emt 0:00:35]} 17. Nc4 {[%emt 0:10:05]} Qc7 {[%emt 0:03:15]} 18. h4 {[%emt 0:05:14]} c5 {[%emt 0:10:43]} 19. Qe2 {[%emt 0:11:34]} Rac8 {[%emt 0:08:13]} 20. b3 {[%emt 0:00:50]} cxd4 {[%emt 0:03:08]} 21. cxd4 {[%emt 0:00:19]} Bg7 {[%emt 0:00:57]} 22. h5 {[%emt 0:04:32]} Nf6 {[%emt 0:00:55]} 23. hxg6 {[%emt 0:00:47]} hxg6 {[%emt 0:00:05]} 24. Bf3 {[%emt 0:04:55]} Bh6 {[%emt 0:01:57]} 25. Re5 {[%emt 0:04:16]} Nd7 {[%emt 0:06:58]} 26. Rb5 {[%emt 0:01:51]} b6 {[%emt 0:01:01]} 27. Ne5 {[%emt 0:01:17]} Nf6 {[%emt 0:03:09]} 28. Bc6 {[%emt 0:02:23]} Re7 {[%emt 0:02:34]} 29. Rb4 {[%emt 0:00:50]} Qd6 {[%emt 0:06:29]} 30. Rc4 {[%emt 0:00:29]} Kg7 {[%emt 0:01:39]} 31. Rd3 {[%emt 0:01:39]} Rh8 {[%emt 0:00:53]} 32. Rh3 {[%emt 0:02:01]} Nd5 {[%emt 0:00:31]} 33. g3 {[%emt 0:01:38]} Nb4 {[%emt 0:03:13]} 34. Bg2 {[%emt 0:02:01]} b5 {[%emt 0:00:41]} 35. Rxb4 {[%emt 0:00:39]} Qxb4 {[%emt 0:01:49]} 36. Nc6 {[%emt 0:00:04]} Qd6 {[%emt 0:00:13]} 37. Nxe7 {[%emt 0:00:01]} Qxe7 {[%emt 0:00:09]} 38. Qxb5 {[%emt 0:00:48]} Rc8 {[%emt 0:00:33]} 39. Qe5+ {[%emt 0:01:25]} f6 {[%emt 0:00:44]} 40. Qe2 {[%emt 0:00:30]} Qd6 {[%emt 0:00:41]} 41. Rh4 {[%emt 0:00:43]} Bg5 {[%emt 0:01:29]} 42. Re4 {[%emt 0:00:28]} f5 {[%emt 0:00:36]} 43. Rxe6 {[%emt 0:00:43]} Qxd4 {[%emt 0:00:06]} 44. Rxg6+ {[%emt 0:01:25]} Kxg6 {[%emt 0:00:47]} 45. Qe6+ {[%emt 0:00:01]} Bf6 {[%emt 0:00:26]} 46. Qxc8 {[%emt 0:00:11]} Qa1+ {[%emt 0:00:24]} 47. Bf1 {[%emt 0:00:03]} Qxa2 {[%emt 0:00:52]} 48. Qg8+ {[%emt 0:00:37]} Kh6 {[%emt 0:00:58]} 49. Qf8+ {[%emt 0:01:08]} Kg6 {[%emt 0:00:23]} 50. Bb5 {[%emt 0:01:07]} Qxb3 {[%emt 0:00:58]} 51. Be8+ {[%emt 0:00:17]} Kg5 {[%emt 0:00:27]} 52. Bf7 {[%emt 0:00:25]} Qb1+ {[%emt 0:01:24]} 53. Kh2 {[%emt 0:00:17]} Kg4 {[%emt 0:00:37]} 54. Qh6 {[%emt 0:00:34]} Kf3 {[%emt 0:01:27]} 55. Qe3+ {[%emt 0:00:41]} Kg4 {[%emt 0:00:08]} 56. Qf4# {[%emt 0:00:05]} 1-0